lending/lending_fUSD_20240621
["ID","MTS","AMOUNT","RATE_DAILY","PERIOD"]
[330049393,1718970648673,-500.0,0.00021917,4]
[330049394,1718970648683,-5726.04,0.00021917,4]
[330049395,1718970648693,-500.0,0.00021917,4]
[330049396,1718970648702,-3898.46,0.00021917,4]
[330049397,1718970648711,-151.0,0.00021917,2]
[330049398,1718970648720,-151.0,0.00021917,2]
[330049399,1718970648730,-615.46,0.00021917,4]
[330049400,1718970648740,-151.0,0.00021917,2]
[330049401,1718970648749,-500.0,0.00021917,4]
[330049402,1718970648758,-458.75194019,0.00021917,4]
[330049403,1718970648768,-500.0,0.00021917,4]
[330049404,1718970648777,-500.0,0.00021917,4]
[330049406,1718970648786,-2545.64,0.00021917,4]
[330049408,1718970648795,-1833.05,0.00021917,4]
[330049409,1718970648805,-500.0,0.00021917,4]
[330049410,1718970648814,-151.0,0.00021917,2]
[330049411,1718970648824,-220.83288,0.00021917,2]
[330049412,1718970648833,-695.19,0.00021917,4]
[330049413,1718970648843,-500.0,0.00021917,4]
[330049414,1718970648853,-500.0,0.00021917,4]
[330049415,1718970648862,-151.0,0.00021917,2]
[330049416,1718970648871,-500.0,0.00021917,4]
[330049417,1718970648881,-151.0,0.00021917,2]
[330049418,1718970648890,-151.0,0.00021917,2]
[330049419,1718970648900,-500.0,0.00021917,4]
[330049420,1718970648909,-500.0,0.00021917,4]
[330049421,1718970648920,-500.0,0.00021917,4]
[330049422,1718970648930,-500.0,0.00021917,4]
[330049423,1718970648939,-500.0,0.00021917,4]
[330049424,1718970648949,-7597.14,0.00021917,4]
[330049425,1718970648959,-151.0,0.00021917,2]
[330049426,1718970648969,-1042.02,0.00021917,4]
[330049427,1718970648979,-159.133826,0.00021917,2]
[330049428,1718970648988,-500.0,0.00021917,4]
[330049429,1718970648998,-1966.951448,0.00021917,2]
[330049430,1718970649008,-501.87679793,0.00021917,4]
[330049431,1718970649019,-1966.951448,0.00021917,2]
[330049432,1718970649029,-1966.951448,0.00021917,2]
[330049433,1718970649038,-500.0,0.00021917,4]
[330049434,1718970649047,-561.1837336,0.00021917,4]
[330049435,1718970649057,-500.0,0.00021917,4]
[330049436,1718970649066,-2454.8,0.00021917,4]
[330049437,1718970649075,-1966.951448,0.00021917,2]
[330049438,1718970649085,-1966.951448,0.00021917,2]
[330049439,1718970649094,-500.0,0.00021917,4]
[330049440,1718970649104,-1966.951448,0.00021917,2]
[330049441,1718970649113,-4118.12,0.00021917,4]
[330049442,1718970649122,-500.0,0.00021917,4]
[330049443,1718970649131,-500.0,0.00021917,4]
[330049444,1718970649141,-500.0,0.00021917,4]
[330049445,1718970649150,-500.0,0.00021917,4]
[330049446,1718970649160,-500.0,0.00021917,4]
[330049447,1718970649169,-500.0,0.00021917,4]
[330049448,1718970649179,-500.0,0.00021917,4]
[330049449,1718970649188,-500.0,0.00021917,4]
[330049450,1718970649198,-500.0,0.00021917,4]
[330049451,1718970649208,-901.57,0.00021917,4]
[330049452,1718970649218,-387.672968,0.00021917,2]
[330049453,1718970649228,-387.672968,0.00021917,2]
[330049454,1718970649237,-500.0,0.00021917,4]
[330049455,1718970649247,-387.672968,0.00021917,2]
[330049456,1718970649257,-3360.82,0.00021917,4]
[330049457,1718970649269,-500.0,0.00021917,4]
[330049458,1718970649278,-502.63629011,0.00021917,4]
[330049459,1718970649288,-500.0,0.00021917,4]
[330049460,1718970649297,-500.0,0.00021917,4]
[330049461,1718970649306,-500.0,0.00021917,4]
[330049462,1718970649316,-500.0,0.00021917,4]
[330049463,1718970649327,-151.0,0.00021917,2]
[330049464,1718970649337,-2286.93,0.00021917,4]
[330049465,1718970649347,-158.640598,0.00021917,2]
[330049466,1718970649357,-500.0,0.00021917,4]
[330049467,1718970649368,-387.672968,0.00021917,2]
[330049468,1718970649378,-387.672968,0.00021917,2]
[330049469,1718970649387,-500.0,0.00021917,4]
[330049470,1718970649397,-2131.81,0.00021917,4]
[330049471,1718970649407,-1261.85,0.00021917,4]
[330049472,1718970649417,-2381.95968,0.00021917,2]
[330049473,1718970649427,-387.672968,0.00021917,2]
[330049474,1718970649437,-2381.95968,0.00021917,2]
[330049475,1718970649447,-4512.65,0.00021917,4]
[330049476,1718970649459,-13079.48,0.00021917,4]
[330049477,1718970649468,-2381.95968,0.00021917,2]
[330049478,1718970649478,-500.0,0.00021917,4]
[330049479,1718970649487,-500.0,0.00021917,4]
[330049480,1718970649497,-506.16294569,0.00021917,4]
[330049481,1718970649507,-631.61,0.00021917,4]
[330049482,1718970649519,-2381.95968,0.00021917,2]
[330049483,1718970649528,-2381.95968,0.00021917,2]
[330049484,1718970649537,-2381.95968,0.00021917,2]
[330049485,1718970649546,-500.0,0.00021917,4]
[330049486,1718970649555,-500.0,0.00021917,4]
[330049487,1718970649564,-6378.64,0.00021917,4]
[330049488,1718970649574,-500.0,0.00021917,4]
[330049489,1718970649584,-2105.03,0.00021917,4]
[330049490,1718970649595,-1995.39,0.00021917,4]
[330049491,1718970649605,-500.0,0.00021917,4]
[330049492,1718970649614,-3134.57,0.00021917,4]
[330049493,1718970649623,-2287.184906,0.00021917,2]
[330049494,1718970649633,-2287.184906,0.00021917,2]
[330049495,1718970649642,-2287.184906,0.00021917,2]
[330049496,1718970649651,-500.0,0.00021917,4]
[330049497,1718970649661,-500.0,0.00021917,4]
[330049498,1718970649671,-500.0,0.00021917,4]
[330049499,1718970649680,-973.47,0.00021917,4]
[330049500,1718970649691,-2287.184906,0.00021917,2]
[330049501,1718970649701,-2287.184906,0.00021917,2]
[330049502,1718970649710,-2287.184906,0.00021917,2]
[330049503,1718970649720,-500.0,0.00021917,4]
[330049504,1718970649731,-3264.17,0.00021917,4]
[330049505,1718970649740,-500.0,0.00021917,4]
[330049506,1718970649750,-3584.84,0.00021917,4]
[330049507,1718970649759,-1107.54,0.00021917,4]
[330049508,1718970649770,-521.05,0.00021917,4]
[330049509,1718970649779,-934.09,0.00021917,4]
[330049510,1718970649789,-500.0,0.00021917,4]
[330049511,1718970649799,-9067.04,0.00021917,4]
[330049512,1718970649809,-590.15,0.00021917,4]
[330049513,1718970649819,-2090.72,0.00021917,4]
[330049514,1718970649828,-500.0,0.00021917,4]
[330049515,1718970649838,-151.0,0.00021917,2]
[330049516,1718970649847,-151.0,0.00021917,2]
[330049517,1718970649856,-500.0,0.00021917,4]
[330049518,1718970649866,-500.0,0.00021917,4]
[330049519,1718970649876,-151.0,0.00021917,2]
[330049520,1718970649886,-151.0,0.00021917,2]
[330049521,1718970649896,-2428.02,0.00021917,4]
[330049522,1718970649906,-1239.98,0.00021917,4]
[330049523,1718970649915,-1983.3,0.00021917,4]
[330049524,1718970649925,-151.0,0.00021917,2]
[330049525,1718970649935,-500.0,0.00021917,4]
[330049526,1718970649944,-151.0,0.00021917,2]
[330049527,1718970649954,-500.0,0.00021917,4]
[330049528,1718970649964,-500.0,0.00021917,4]
[330049529,1718970649974,-477.89427847,0.00021917,4]
[330049530,1718970649985,-2962.9,0.00021917,4]
[330049531,1718970649994,-1646.83,0.00021917,4]
[330049532,1718970650004,-500.0,0.00021917,4]
[330049533,1718970650015,-941.06,0.00021917,4]
[330049534,1718970650024,-4549.98,0.00021917,4]
[330049535,1718970650034,-565.88,0.00021917,4]
[330049536,1718970650273,-2277.3,0.00021917,4]
[330049537,1718970650301,-500.20709893,0.00021917,4]
[330049538,1718970650311,-801.31,0.00021917,4]
[330049539,1718970650321,-2864.46,0.00021917,4]
[330049540,1718970650330,-8922.14,0.00021917,4]
[330049541,1718970650340,-500.0,0.00021917,4]
[330049542,1718970650349,-500.0,0.00021917,4]
[330049543,1718970650359,-2000.7,0.00021917,4]
[330049544,1718970650368,-500.0,0.00021917,4]
[330049545,1718970650377,-500.0,0.00021917,4]
[330049546,1718970650387,-554.73,0.00021917,4]
[330049547,1718970650396,-1299.84,0.00021917,4]
[330049548,1718970650406,-4160.93,0.00021917,4]
[330049549,1718970650415,-16661.77,0.00021917,4]
[330049550,1718970650425,-1295.0,0.00021917,4]
[330049551,1718970650435,-1032.68,0.00021917,4]
[330049552,1718970650444,-563.60160279,0.00021917,4]
[330049553,1718970650454,-500.0,0.00021917,4]
[330049554,1718970650463,-1484.23,0.00021917,4]
[330049555,1718970650472,-3954.07,0.00021917,4]
[330049556,1718970650481,-793.28,0.00021917,4]
[330049557,1718970650490,-500.0,0.00021917,4]
[330049558,1718970650499,-856.24,0.00021917,4]
[330049559,1718970650508,-500.0,0.00021917,4]
[330049560,1718970650519,-500.0,0.00021917,4]
[330049561,1718970650529,-548.03890547,0.00021917,2]
[330049562,1718970650538,-500.0,0.00021917,4]
[330049563,1718970650548,-500.0,0.00021917,4]
[330049564,1718970650557,-500.0,0.00021917,4]
[330049565,1718970650567,-13146.28,0.00021917,4]
[330049566,1718970650577,-500.0,0.00021917,4]
[330049567,1718970650587,-3182.79,0.00021917,4]
[330049568,1718970650600,-500.0,0.00021917,4]
[330049569,1718970650610,-151.0,0.00021917,2]
[330049570,1718970650620,-500.0,0.00021917,4]
[330049571,1718970650631,-1331.58,0.00021917,4]
[330049572,1718970650641,-151.0,0.00021917,2]
[330049573,1718970650651,-151.0,0.00021917,2]
[330049574,1718970650660,-500.0,0.00021917,4]
[330049575,1718970650671,-151.0,0.00021917,2]
[330049576,1718970650682,-1300.71,0.00021917,4]
[330049577,1718970650691,-2068.57,0.00021917,4]
[330049578,1718970650700,-746.04,0.00021917,4]
[330049579,1718970650710,-500.0,0.00021917,4]
[330049580,1718970650720,-2053.05,0.00021917,4]
[330049581,1718970650729,-151.0,0.00021917,2]
[330049582,1718970650739,-151.0,0.00021917,2]
[330049583,1718970650748,-4367.99,0.00021917,4]
[330049584,1718970650758,-151.0,0.00021917,2]
[330049585,1718970650768,-500.0,0.00021917,4]
[330049586,1718970650778,-151.0,0.00021917,2]
[330049587,1718970650790,-1369.58,0.00021917,4]
[330049588,1718970650801,-500.0,0.00021917,4]
[330049589,1718970650811,-1143.78,0.00021917,4]
[330049590,1718970650822,-500.0,0.00021917,4]
[330049591,1718970650832,-547.89,0.00021917,4]
[330049592,1718970650841,-3026.97,0.00021917,4]
[330049593,1718970650851,-507.88909019,0.00021917,4]
[330049594,1718970650861,-4478.87,0.00021917,4]
[330049595,1718970650871,-1127.78,0.00021917,4]
[330049596,1718970650881,-500.0,0.00021917,4]
[330049597,1718970650891,-9733.22,0.00021917,4]
[330049598,1718970650901,-500.0,0.00021917,4]
[330049599,1718970650912,-151.0,0.00021917,2]
[330049600,1718970650921,-624.53,0.00021917,4]
[330049601,1718970650931,-151.0,0.00021917,2]
[330049602,1718970650941,-6301.15,0.00021917,4]
[330049603,1718970650950,-9960.75,0.00021917,4]
[330049604,1718970650960,-151.0,0.00021917,2]
[330049605,1718970650969,-500.0,0.00021917,4]
[330049606,1718970650980,-151.0,0.00021917,2]
[330049607,1718970650991,-500.0,0.00021917,4]
[330049608,1718970651002,-504.67,0.00021917,4]
[330049609,1718970651011,-3978.35,0.00021917,4]
[330049610,1718970651021,-500.0,0.00021917,4]
[330049611,1718970651031,-702.86,0.00021917,4]
[330049612,1718970651042,-7476.13,0.00021917,4]
[330049613,1718970651054,-151.0,0.00021917,2]
[330049614,1718970651063,-151.0,0.00021917,2]
[330049615,1718970651072,-151.0,0.00021917,2]
[330049616,1718970651083,-485.52311141,0.00021917,4]
[330049617,1718970651102,-4422.56688859,0.00021917,4]
[330049618,1718970651111,-151.0,0.00021917,2]
[330049619,1718970651121,-500.0,0.00021917,4]
[330049620,1718970651131,-5474.97111141,0.00021917,4]
[330049621,1718970651143,-533.5772244,0.00021917,4]
[330049622,1718970651163,-1595.6,0.00021917,4]
[330049623,1718970956897,200.0,0.00012438,30]
[330049624,1718970956950,200.0,0.00012438,30]
[330049625,1718970956998,200.0,0.00012438,30]
[330049626,1718970957055,208.07594093,0.00012438,30]
[330049628,1718971091089,332.15906142,0.00016915,30]
[330049681,1718971832299,-150.0,0.00013899,2]
[330049682,1718971832309,-525.42941535,0.00017659,2]
[330049683,1718971832322,-251.15795093,0.00018716,2]
[330049684,1718971832333,-792.5901174,0.00018716,2]
[330049685,1718971832385,-609.67999998,0.00018716,2]
[330049686,1718971832397,-450.0,0.00018716,2]
[330049687,1718971832466,-825.99999941,0.00018716,2]
[330049688,1718971832478,-732.91429086,0.00018716,2]
[330049689,1718971832495,-1929.92834477,0.00018716,2]
[330049690,1718971832505,-526.65,0.00018717,2]
[330049691,1718971832516,-300.0,0.00019282,2]
[330049692,1718971832526,-311.97360493,0.0001988,2]
[330049693,1718971832536,-2063.86662645,0.00019999,2]
[330049694,1718971832616,-2388.85976891,0.00019999,2]
[330049695,1718971832627,-250.0,0.00020229,2]
[330049696,1718971832636,-547.08169782,0.0002027,2]
[330049714,1718971837720,-452.91830218,0.0002027,2]
[330049715,1718971837731,-909.4,0.00020362,2]
[330049716,1718971837741,-250.0,0.00020902,2]
[330049717,1718971837751,-845.32,0.00020902,30]
[330049718,1718971837762,-2127.0,0.00020926,2]
[330049719,1718971837772,-254.67414966,0.00020933,2]
[330049720,1718971837785,-406.20249866,0.00020933,2]
[330049721,1718971837807,-191.70335168,0.00020933,2]
[330049722,1718971837817,-345.51887059,0.00020933,2]
[330049723,1718971837973,-72.75112941,0.00020933,2]
[330049724,1718971837985,-418.27,0.00020933,2]
[330049725,1718971837996,-506.95,0.00020933,2]
[330049726,1718971838007,-418.27,0.00020933,2]
[330049727,1718971838017,-113.79364832,0.00020933,2]
[330049728,1718971838030,-304.47635168,0.00020933,2]
[330049729,1718971838041,-76.858302,0.00020941,2]
[330049730,1718971838054,-675.88889108,0.00020941,2]
[330049731,1718971838069,-99.83280692,0.00020941,2]
[330049732,1718971838084,-177.78864682,0.00020981,2]
[330049733,1718971838097,-348.86135318,0.00020981,2]
[330049734,1718971838107,-418.17,0.00021068,2]
[330049735,1718971838118,-1382.88,0.00021082,2]
[330049736,1718971838128,-418.2,0.00021084,2]
[330049737,1718971838138,-527.5,0.00021084,2]
[330049738,1718971838148,-527.5,0.00021084,2]
[330049739,1718971838159,-527.5,0.00021084,2]
[330049740,1718971838169,-245.17,0.00021084,2]
[330049741,1718971838179,-165.51,0.00021088,2]
[330049742,1718971838191,-846.97,0.00021256,2]
[330049743,1718971838202,-150.0,0.00021256,2]
[330049744,1718971838213,-527.5,0.00021256,2]
[330049745,1718971838223,-603.83,0.00021256,2]
[330049746,1718971838234,-150.0,0.00021256,2]
[330049747,1718971838244,-1271.0,0.00021285,2]
[330049748,1718971838254,-1830.0,0.00021285,2]
[330049749,1718971838264,-359.0,0.00021285,2]
[330049750,1718971838274,-1653.0,0.00021285,2]
[330049751,1718971838284,-617.0,0.00021285,2]
[330049752,1718971838294,-165.0,0.00021285,2]
[330049753,1718971838305,-812.0,0.00021285,2]
[330049754,1718971838315,-2410.0,0.00021285,2]
[330049786,1718971838723,-1303.0,0.00021285,2]
[330049788,1718971838742,-192.67412761,0.00021285,2]
[330049791,1718971838754,-254.32587239,0.00021285,2]
[330049793,1718971838769,-547.0,0.00021285,2]
[330049795,1718971838779,-711.36478461,0.00021285,2]
[330049797,1718971838792,-2486.63521539,0.00021285,2]
[330049799,1718971838802,-1982.0,0.00021285,2]
[330049801,1718971838812,-1067.0,0.00021285,2]
[330049803,1718971838824,-994.01367882,0.00021341,2]
[330049805,1718971838837,-994.01367882,0.00021341,2]
[330049807,1718971838848,-1054.51,0.00021342,2]
[330049809,1718971838857,-316.16,0.00021342,2]
[330049811,1718971838867,-427.21293137,0.00021747,2]
[330049813,1718971838877,-1030.4168,0.00021807,2]
[330049815,1718971838886,-391.953949,0.00021807,2]
[330049819,1718971838916,-669.22858176,0.00021807,2]
[330049821,1718971838930,-4070.08297907,0.00021807,2]
[330049824,1718971838943,-1064.5676234,0.00021807,2]
[330049878,1718971839565,-526.67656677,0.00021807,2]
[330049880,1718971839579,-123.01475743,0.00021807,2]
[330049883,1718971839591,-88.95254257,0.00021807,2]
[330049885,1718971839601,-439.52575711,0.00021807,2]
[330049887,1718971839617,-1080.9383955,0.00021807,2]
[330049906,1718971839810,-2974.22644739,0.00021807,2]
[330049908,1718971839821,-165.0001,0.00021807,2]
[330049909,1718971839833,-656.45,0.00021817,2]
[330049910,1718971839843,-1951.4846,0.00021817,2]
[330049911,1718971839854,-171.39309846,0.00021817,2]
[330049912,1718971839865,-157.72862368,0.00021817,2]
[330049913,1718971839877,-175.25547106,0.00021817,2]
[330049914,1718971839888,-322.64063138,0.00021817,2]
[330049915,1718971839899,-384.09870792,0.00021859,2]
[330049916,1718971839910,-194.38,0.00021892,2]
[330049917,1718971839920,-342597.7169744,0.00021907,2]
[330049918,1718971839941,-4787.60845591,0.00021907,2]
[330049919,1718971839963,-269.54288353,0.00021907,2]
[330049920,1718971840007,-121802.38306445,0.00021907,2]
[330049981,1718971842591,-6973.38564092,0.00021907,2]
[330049984,1718971842603,-17946.5494191,0.00021907,2]
[330050009,1718971842760,-13025.97080858,0.00021907,2]
[330050020,1718971845070,1906.92324739,0.0001,3]
[330050026,1718971847708,-7500.0,0.00021817,2]
[330050027,1718971847718,-115729.38124411,0.00021907,2]
[330050028,1718971847727,-1206.96959051,0.00021917,2]
[330050029,1718971847737,-500.0,0.00021917,4]
[330050030,1718971847747,-305.74036439,0.00021917,4]
[330050031,1718971847756,-500.0,0.00021917,4]
[330050032,1718971847766,-500.0,0.00021917,4]
[330050033,1718971847776,-500.0,0.00021917,4]
[330050034,1718971847785,-500.0,0.00021917,4]
[330050035,1718971847795,-500.0,0.00021917,4]
[330050036,1718971847805,-500.75851923,0.00021917,4]
[330050037,1718971847814,-500.0,0.00021917,4]
[330050038,1718971847824,-500.0,0.00021917,4]
[330050039,1718971847837,-337.85492021,0.00021917,4]
[330050040,1718971847849,-500.0,0.00021917,4]
[330050041,1718971847859,-500.21989421,0.00021917,4]
[330050042,1718971847869,-500.0,0.00021917,4]
[330050043,1718971847879,-500.0,0.00021917,4]
[330050044,1718971847888,-500.0,0.00021917,4]
[330050045,1718971847898,-500.26622927,0.00021917,4]
[330050046,1718971847908,-500.0,0.00021917,4]
[330050047,1718971847918,-500.0,0.00021917,4]
[330050048,1718971847927,-249.31059248,0.00021917,4]
[330050049,1718971847938,-425.09569102,0.00021917,4]
[330050050,1718971847948,-502.52310544,0.00021917,4]
[330050051,1718971847959,-533.71222749,0.00021917,4]
[330050052,1718971847969,-500.0,0.00021917,4]
[330050053,1718971847983,-500.0,0.00021917,4]
[330050054,1718971847993,-524.84224974,0.00021917,4]
[330050055,1718971848003,-500.0,0.00021917,4]
[330050056,1718971848013,-500.0,0.00021917,4]
[330050057,1718971848024,-500.0,0.00021917,4]
[330050058,1718971848034,-507.64718998,0.00021917,4]
[330050059,1718971848044,-500.0,0.00021917,4]
[330050060,1718971848055,-516.11360268,0.00021917,4]
[330050061,1718971848066,-500.0,0.00021917,4]
[330050062,1718971848076,-500.0,0.00021917,4]
[330050063,1718971848088,-500.0,0.00021917,4]
[330050064,1718971848096,-501.25760503,0.00021917,4]
[330050065,1718971848105,-500.0,0.00021917,4]
[330050066,1718971848115,-500.0,0.00021917,4]
[330050067,1718971848124,-500.0,0.00021917,4]
[330050068,1718971848134,-500.0,0.00021917,4]
[330050069,1718971848143,-500.0,0.00021917,4]
[330050070,1718971848153,-500.0,0.00021917,4]
[330050071,1718971848163,-500.0,0.00021917,4]
[330050072,1718971848172,-500.0,0.00021917,4]
[330050073,1718971848181,-500.0,0.00021917,4]
[330050074,1718971848191,-324.36198575,0.00021917,2]
[330050075,1718971848200,-502.11100456,0.00021917,4]
[330050076,1718971848209,-500.0,0.00021917,4]
[330050077,1718971848218,-500.0,0.00021917,4]
[330050078,1718971848227,-500.0,0.00021917,4]
[330050079,1718971848237,-500.0,0.00021917,4]
[330050080,1718971848246,-500.0,0.00021917,4]
[330050081,1718971848255,-500.0,0.00021917,4]
[330050082,1718971848265,-500.0,0.00021917,4]
[330050083,1718971848274,-500.0,0.00021917,4]
[330050084,1718971848283,-500.0,0.00021917,4]
[330050085,1718971848293,-500.0,0.00021917,4]
[330050086,1718971848302,-1828.97219883,0.00021917,2]
[330050087,1718971848311,-500.0,0.00021917,4]
[330050088,1718971848320,-500.0,0.00021917,4]
[330050089,1718971848330,-200.0,0.00021917,2]
[330050090,1718971848341,-500.0,0.00021917,4]
[330050091,1718971848350,-500.0,0.00021917,4]
[330050092,1718971848360,-954.71,0.00021917,4]
[330050093,1718971848369,-500.0,0.00021917,4]
[330050094,1718971848379,-500.0,0.00021917,4]
[330050095,1718971848388,-170.58390145,0.00021917,4]
[330050096,1718971848397,-501.98833413,0.00021917,4]
[330050097,1718971848408,-500.0,0.00021917,4]
[330050098,1718971848418,-500.0,0.00021917,4]
[330050099,1718971848429,-1056.27,0.00021917,4]
[330050100,1718971848439,-662.37,0.00021917,4]
[330050101,1718971848448,-500.0,0.00021917,4]
[330050102,1718971848460,-153.811699,0.00021917,2]
[330050103,1718971848470,-500.0,0.00021917,4]
[330050104,1718971848481,-500.0,0.00021917,4]
[330050105,1718971848491,-673.94,0.00021917,4]
[330050106,1718971848501,-500.0,0.00021917,4]
[330050107,1718971848511,-500.0,0.00021917,4]
[330050108,1718971848520,-898.17,0.00021917,4]
[330050109,1718971848530,-500.0,0.00021917,4]
[330050110,1718971848540,-501.12735129,0.00021917,4]
[330050111,1718971848550,-500.0,0.00021917,4]
[330050112,1718971848559,-500.0,0.00021917,4]
[330050113,1718971848569,-500.0,0.00021917,4]
[330050114,1718971848578,-500.0,0.00021917,4]
[330050115,1718971848591,-500.0,0.00021917,4]
[330050116,1718971848600,-500.0,0.00021917,4]
[330050117,1718971848610,-500.0,0.00021917,4]
[330050118,1718971848623,-500.0,0.00021917,4]
[330050119,1718971848633,-500.0,0.00021917,4]
[330050120,1718971848644,-545.63,0.00021917,4]
[330050121,1718971848655,-500.0,0.00021917,4]
[330050122,1718971848665,-500.0,0.00021917,4]
[330050123,1718971848675,-500.0,0.00021917,4]
[330050124,1718971848686,-500.0,0.00021917,4]
[330050125,1718971848696,-500.0,0.00021917,4]
[330050126,1718971848706,-505.08,0.00021917,4]
[330050127,1718971848716,-500.0,0.00021917,4]
[330050128,1718971848726,-892.02,0.00021917,7]
[330050129,1718971848735,-500.0,0.00021917,4]
[330050130,1718971848745,-500.0,0.00021917,4]
[330050131,1718971848754,-500.0,0.00021917,4]
[330050132,1718971848763,-565.26,0.00021917,4]
[330050133,1718971848772,-500.0,0.00021917,4]
[330050134,1718971848781,-500.86,0.00021917,4]
[330050135,1718971848791,-684.72,0.00021917,4]
[330050136,1718971848800,-257.136581,0.00021917,2]
[330050137,1718971848809,-500.0,0.00021917,4]
[330050138,1718971848819,-480.76821442,0.00021917,4]
[330050139,1718971848828,-500.0,0.00021917,4]
[330050140,1718971848841,-500.0,0.00021917,4]
[330050141,1718971848851,-500.0,0.00021917,4]
[330050142,1718971848861,-955.87,0.00021917,4]
[330050143,1718971848870,-723.84,0.00021917,4]
[330050144,1718971848880,-500.0,0.00021917,4]
[330050145,1718971848889,-500.0,0.00021917,4]
[330050146,1718971848898,-560.93685561,0.00021917,4]
[330050147,1718971848908,-510.45344603,0.00021917,4]
[330050148,1718971848917,-500.0,0.00021917,4]
[330050149,1718971848926,-1266.31,0.00021917,4]
[330050150,1718971848936,-786.2,0.00021917,4]
[330050151,1718971848945,-500.0,0.00021917,4]
[330050152,1718971848955,-500.0,0.00021917,4]
[330050153,1718971848969,-1313.51,0.00021917,4]
[330050154,1718971848979,-500.0,0.00021917,4]
[330050155,1718971848988,-500.0,0.00021917,4]
[330050156,1718971848997,-500.0,0.00021917,4]
[330050157,1718971849009,-1893.87,0.00021917,4]
[330050158,1718971849018,-1893.87,0.00021917,4]
[330050159,1718971849028,-1893.87,0.00021917,4]
[330050160,1718971849040,-500.0,0.00021917,4]
[330050161,1718971849049,-500.0,0.00021917,2]
[330050162,1718971849060,-500.0,0.00021917,2]
[330050163,1718971849069,-500.0,0.00021917,2]
[330050164,1718971849078,-586.04,0.00021917,4]
[330050165,1718971849091,-151.0,0.00021917,2]
[330050166,1718971849101,-151.0,0.00021917,2]
[330050167,1718971849110,-500.0,0.00021917,4]
[330050168,1718971849120,-729.16,0.00021917,4]
[330050169,1718971849130,-502.6846414,0.00021917,4]
[330050170,1718971849139,-151.0,0.00021917,2]
[330050171,1718971849148,-500.0,0.00021917,4]
[330050172,1718971849158,-500.0,0.00021917,4]
[330050173,1718971849166,-500.0,0.00021917,4]
[330050174,1718971849176,-200.0,0.00021917,4]
[330050175,1718971849185,-588.56,0.00021917,4]
[330050176,1718971849194,-504.69,0.00021917,4]
[330050177,1718971849494,-500.0,0.00021917,4]
[330050178,1718971849504,-500.0,0.00021917,4]
[330050179,1718971849514,-500.0,0.00021917,4]
[330050180,1718971849523,-520.21671529,0.00021917,4]
[330050181,1718971849534,-1198.98,0.00021917,4]
[330050182,1718971849544,-500.0,0.00021917,4]
[330050183,1718971849555,-500.0,0.00021917,4]
[330050184,1718971849565,-667.38,0.00021917,4]
[330050185,1718971849574,-500.0,0.00021917,4]
[330050186,1718971849585,-151.0,0.00021917,2]
[330050187,1718971849595,-185.176724,0.00021917,2]
[330050188,1718971849605,-500.0,0.00021917,4]
[330050189,1718971849615,-994.41,0.00021917,4]
[330050190,1718971849624,-500.0,0.00021917,4]
[330050191,1718971849634,-500.0,0.00021917,4]
[330050192,1718971849644,-457.7395741,0.00021917,2]
[330050193,1718971849654,-603.1,0.00021917,4]
[330050194,1718971849663,-500.0,0.00021917,4]